[Event "World Team-ch Women 2019"]
[Site "Astana"]
[Date "2019.03.12"]
[Round "7.13"]
[White "Abrahamyan, Tatev"]
[Black "Karavade, Eesha"]
[Result "0-1"]
[ECO "B48"]
[WhiteElo "2377"]
[BlackElo "2357"]
[Annotator "RC"]
[PlyCount "96"]
[EventDate "2019.02.05"]
[EventType "team-tourn"]
[EventCountry "KAZ"]
[SourceTitle "playchess.com"]
[Source "ChessBase"]
[SourceQuality "1"]
[WhiteTeam "United States"]
[BlackTeam "India"]
[WhiteTeamCountry "USA"]
[BlackTeamCountry "IND"]
[TimeControl "40/5400+30:1800+30"]

1. e4 {[%emt 0:00:00]} c5 {[%emt 0:00:00]} 2. Nf3 {[%emt 0:00:00]} e6 {[%emt 0:00:18]} 3. d4 {[%emt 0:00:17]} cxd4 {[%emt 0:00:09]} 4. Nxd4 {[%emt 0:00:03]} Nc6 {[%emt 0:00:09]} 5. Nc3 {[%emt 0:00:51]} Qc7 {[%emt 0:00:09]} 6. Be3 {[%emt 0:04:42]} Nf6 {[%emt 0:01:37]} 7. Qd2 {[%emt 0:05:54]} a6 {[%emt 0:03:22]} 8. O-O-O {[%emt 0:01:36]} Be7 {[%emt 0:00:06]} 9. f3 {[%emt 0:00:15]} b5 {[%emt 0:01:30]} 10. g4 {[%emt 0:02:06]} Nxd4 {[%emt 0:00:11]} 11. Bxd4 {[%emt 0:07:08]} Bb7 {[%emt 0:04:18]} 12. g5 {[%emt 0:03:38]} Nh5 {[%emt 0:00:06]} 13. Kb1 {[%emt 0:00:45]} O-O {[%emt 0:07:33]} 14. Be3 {[%emt 0:33:45]} d5 {[%emt 0:18:01]} 15. Bd3 {[%emt 0:07:57]} Rad8 {[%emt 0:16:00]} 16. exd5 {[%emt 0:02:01]} b4 {[%emt 0:00:43]} 17. Ne4 {[%emt 0:04:45]} Bxd5 {[%emt 0:11:04]} 18. Qf2 {[%emt 0:00:52]} Qc6 {[%emt 0:00:11]} 19. Rhg1 {[%emt 0:03:11]} e5 {[%emt 0:04:07]} 20. Rdf1 {[%emt 0:05:52]} g6 {[%emt 0:02:24]} 21. Rg4 {[%emt 0:05:53]} Be6 {[%emt 0:08:51]} 22. Rh4 {[%emt 0:01:51]} Rxd3 {[%emt 0:00:23]} 23. cxd3 {[%emt 0:00:13]} Qd5 {[%emt 0:00:05]} 24. b3 {[%emt 0:01:45]} Qxd3+ {[%emt 0:00:08]} 25. Ka1 {[%emt 0:01:06]} f5 {[%emt 0:03:10]} 26. gxf6 {[%emt 0:00:36]} Nxf6 {[%emt 0:00:13]} 27. Nxf6+ {[%emt 0:03:26]} Bxf6 {[%emt 0:00:40]} 28. Re4 {[%emt 0:00:15]} Bf5 {[%emt 0:01:32]} 29. Bh6 {[%emt 0:00:40]} Rc8 {[%emt 0:04:26]} 30. Rc1 {[%emt 0:00:45]} Rxc1+ {[%emt 0:02:18]} 31. Bxc1 {[%emt 0:00:03]} Bxe4 {[%emt 0:01:12]} 32. fxe4 {[%emt 0:00:04]} Kf7 {[%emt 0:03:20]} 33. Qa7+ {[%emt 0:01:09]} Be7 {[%emt 0:00:08]} 34. Qb7 {[%emt 0:00:36]} Qb5 {[%emt 0:01:42]} 35. Qc7 {[%emt 0:00:57]} Qc5 {[%emt 0:00:14]} 36. Qxc5 {[%emt 0:00:10]} Bxc5 {[%emt 0:00:02]} 37. Kb1 {[%emt 0:00:15]} Kf6 {[%emt 0:02:06]} 38. Kc2 {[%emt 0:00:12]} g5 {[%emt 0:00:25]} 39. Kd3 {[%emt 0:01:09]} g4 {[%emt 0:01:08]} 40. Ke2 {[%emt 0:00:00]} Bg1 {[%emt 0:00:00]} 41. h3 {[%emt 0:03:48]} gxh3 {[%emt 0:02:07]} 42. Kf3 {[%emt 0:00:31]} Kg6 {[%emt 0:01:35]} 43. Bd2 {[%emt 0:07:20]} a5 {[%emt 0:02:25]} 44. Bc1 {[%emt 0:03:57]} Kh5 {[%emt 0:00:47]} 45. a3 {[%emt 0:00:54]} h2 {[%emt 0:01:21]} 46. Kg2 {[%emt 0:00:04]} Kg4 {[%emt 0:00:10]} 47. axb4 {[%emt 0:00:19]} axb4 {[%emt 0:00:07]} 48. Bh6 {[%emt 0:00:21]} Bd4 {[%emt 0:00:25]} 0-1

[Event "World Team-ch Women 2019"]
[Site "Astana"]
[Date "2019.03.12"]
[Round "7.15"]
[White "Yip, Carissa"]
[Black "Padmini, Rout"]
[Result "0-1"]
[ECO "C24"]
[WhiteElo "2279"]
[BlackElo "2332"]
[Annotator "NA RC"]
[PlyCount "66"]
[EventDate "2019.02.05"]
[EventType "team-tourn"]
[EventCountry "KAZ"]
[SourceTitle "playchess.com"]
[Source "ChessBase"]
[SourceQuality "1"]
[WhiteTeam "United States"]
[BlackTeam "India"]
[WhiteTeamCountry "USA"]
[BlackTeamCountry "IND"]
[TimeControl "40/5400+30:1800+30"]

1. e4 {[%emt 0:00:00]} e5 {[%emt 0:00:00]} 2. Bc4 {[%emt 0:00:00]} Nf6 {[%emt 0:01:01]} 3. d3 {[%emt 0:00:00]} Nc6 {[%emt 0:02:38]} 4. Nc3 {[%emt 0:00:20]} Na5 {[%emt 0:01:34]} 5. Nge2 {[%emt 0:01:50]} Nxc4 {[%emt 0:01:52]} 6. dxc4 {[%emt 0:00:05]} g6 {[%emt 0:08:10] C28: Vienna Game: 2...Nf6 3 Bc4 Nc6} (6... Bc5 7. O-O d6 8. Qd3 O-O 9. Be3 Nd7 10. Ng3 a5 11. b3 h6 12. Rad1 Re8 13. Nd5 c6 14. Nc3 Bxe3 15. Qxe3 Nc5 16. Rd2 {1-0 (63) Nakamura,H (2787)-Carlsen,M (2853) chess.com INT 2016}) 7. Bg5 $146 {[%emt 0:07:20]} ({Predecessor:} 7. O-O Bg7 8. f4 exf4 9. Bxf4 d6 10. Bg5 h6 11. Bxf6 Bxf6 12. Rxf6 Qxf6 13. Nd5 Qd8 14. Qd4 Rf8 15. Qg7 c6 16. Nf6+ Ke7 17. Nf4 Bd7 18. Rf1 g5 19. N6d5+ cxd5 20. Ng6+ {1-0 (20) Fell,S (2309)-Ocantos,M (2248) Caba 2017}) 7... h6 {[%emt 0:01:12]} 8. Bh4 {[%emt 0:02:36]} d6 {[%emt 0:10:51]} 9. f3 {[%emt 0:26:43]} Be6 {[%emt 0:07:17]} 10. Qd3 {[%emt 0:03:46]} Be7 {[%emt 0:02:06]} 11. Bf2 {[%emt 0:00:51]} c6 {[%emt 0:04:54]} 12. Rd1 {[%emt 0:02:06]} Nd7 {[%emt 0:03:24]} 13. b3 {[%emt 0:01:18]} Nc5 {[%emt 0:03:44]} 14. Qd2 {[%emt 0:00:47]} Qc7 {[%emt 0:03:05]} 15. Be3 {[%emt 0:09:19]} h5 {[%emt 0:06:02]} 16. a3 {[%emt 0:01:26]} a6 {[%emt 0:01:02]} 17. b4 {[%emt 0:08:43]} Nd7 {[%emt 0:00:12]} 18. Nd5 {[%emt 0:00:06]} cxd5 {[%emt 0:01:04]} 19. cxd5 {[%emt 0:00:04]} Bxd5 $11 {[%emt 0:12:07]} ({Black should try} 19... Bg4 $15 20. fxg4 hxg4) 20. Qxd5 {[%emt 0:02:17]} Rc8 {[%emt 0:00:11]} 21. c3 {[%emt 0:12:28]} Nb6 {[%emt 0:03:21]} 22. Bxb6 {[%emt 0:01:24]} Qxb6 {[%emt 0:00:06]} 23. c4 {[%emt 0:00:12]} O-O {[%emt 0:00:24]} 24. Qd3 {[%emt 0:00:27]} Qc6 {[%emt 0:14:42]} 25. Rc1 {[%emt 0:00:05]} b5 {[%emt 0:00:07]} 26. cxb5 {[%emt 0:04:46]} Qxc1+ {[%emt 0:00:11]} 27. Nxc1 {[%emt 0:00:02]} Rxc1+ {[%emt 0:00:06]} 28. Kd2 {[%emt 0:01:27]} Rxh1 {[%emt 0:09:20]} 29. bxa6 {[%emt 0:04:12]} Rc8 {[%emt 0:00:30]} 30. b5 {[%emt 0:05:39]} Bd8 {[%emt 0:00:30]} 31. a7 {[%emt 0:04:16]} Rhc1 {[%emt 0:01:56]} 32. g3 {[%emt 0:00:47]} Ba5+ {[%emt 0:00:57]} 33. Ke2 {[%emt 0:00:14]} R8c2+ {[%emt 0:00:26]} 0-1

[Event "World Team-ch Women 2019"]
[Site "Astana"]
[Date "2019.03.12"]
[Round "7.16"]
[White "Kulkarni Bhakti"]
[Black "Foisor, Sabina-Francesca"]
[Result "1-0"]
[ECO "E16"]
[WhiteElo "2322"]
[BlackElo "2276"]
[Annotator "NA RC"]
[PlyCount "89"]
[EventDate "2019.02.05"]
[EventType "team-tourn"]
[EventCountry "KAZ"]
[SourceTitle "playchess.com"]
[Source "ChessBase"]
[SourceQuality "1"]
[WhiteTeam "India"]
[BlackTeam "United States"]
[WhiteTeamCountry "IND"]
[BlackTeamCountry "USA"]
[TimeControl "40/5400+30:1800+30"]

1. d4 {[%emt 0:00:00]} Nf6 {[%emt 0:00:00]} 2. c4 {[%emt 0:00:19]} e6 {[%emt 0:00:00]} 3. Nf3 {[%emt 0:00:29]} Bb4+ {[%emt 0:00:53]} 4. Bd2 {[%emt 0:00:17]} Qe7 {[%emt 0:02:22]} 5. g3 {[%emt 0:02:43]} O-O {[%emt 0:01:55]} 6. Bg2 {[%emt 0:00:53]} Bxd2+ {[%emt 0:01:50]} 7. Qxd2 {[%emt 0:00:17]} Ne4 {[%emt 0:10:53]} 8. Qc2 {[%emt 0:00:12]} f5 {[%emt 0:03:25]} 9. O-O {[%emt 0:00:23]} d6 {[%emt 0:00:17]} 10. Nbd2 {[%emt 0:04:48]} Nxd2 {[%emt 0:02:58]} 11. Qxd2 {[%emt 0:01:29]} Nd7 {[%emt 0:01:12] E11: Bogo-Indian} 12. b4 $146 {[%emt 0:01:29]} ({Predecessor:} 12. Qe3 Nf6 13. Rad1 Bd7 14. Qb3 b6 15. Qa3 a5 16. Ne5 Rad8 17. Nc6 Bxc6 18. Bxc6 h5 19. Qf3 g6 20. Qf4 Kg7 21. Qg5 Ng8 22. Qe3 {½-½ (22) Geler,A (2330)-Abramovic,D (2130) Cetinje 2009}) 12... Nf6 {[%emt 0:04:13]} 13. Rfc1 {[%emt 0:00:47]} e5 {[%emt 0:03:38]} 14. d5 {[%emt 0:06:34]} (14. Qc3 $11) 14... f4 {[%emt 0:04:07]} 15. Ng5 {[%emt 0:02:22]} h6 {[%emt 0:12:13]} 16. Ne6 {[%emt 0:08:12]} Bxe6 {[%emt 0:04:53]} 17. dxe6 {[%emt 0:00:03]} Qxe6 {[%emt 0:03:29]} 18. Bxb7 {[%emt 0:02:01]} Rab8 {[%emt 0:01:34]} 19. Bg2 {[%emt 0:03:05]} fxg3 {[%emt 0:06:54]} 20. fxg3 {[%emt 0:01:22]} e4 {[%emt 0:00:12]} 21. a3 {[%emt 0:02:17]} Qe5 {[%emt 0:06:07]} 22. e3 {[%emt 0:06:03]} Kh8 {[%emt 0:05:25]} 23. Qd4 {[%emt 0:03:01]} Qh5 $11 {[%emt 0:02:05]} 24. Rf1 {[%emt 0:06:41]} Ng4 {[%emt 0:02:29]} 25. h3 {[%emt 0:00:22]} Nf6 {[%emt 0:00:41]} 26. Qxa7 {[%emt 0:13:39]} Qe5 {[%emt 0:01:19]} 27. g4 {[%emt 0:03:32]} c5 {[%emt 0:01:46]} 28. b5 {[%emt 0:01:05]} Qc3 {[%emt 0:01:18]} 29. b6 {[%emt 0:02:05]} Qxe3+ {[%emt 0:02:02]} 30. Kh1 {[%emt 0:00:08]} h5 {[%emt 0:02:27]} 31. Rae1 {[%emt 0:02:27]} Qg3 {[%emt 0:01:32]} 32. g5 {[%emt 0:06:37]} Qxg5 {[%emt 0:00:22]} 33. Qe7 {[%emt 0:01:42]} Rfd8 {[%emt 0:04:26]} 34. Bxe4 {[%emt 0:02:58]} Nxe4 {[%emt 0:06:31]} 35. Qxe4 {[%emt 0:00:11]} Rxb6 {[%emt 0:00:33]} 36. Rf5 {[%emt 0:00:16]} Qh6 {[%emt 0:00:23]} 37. Qh4 {[%emt 0:00:15]} Rdb8 {[%emt 0:01:29]} 38. Rxh5 {[%emt 0:00:05]} d5 {[%emt 0:00:14]} 39. cxd5 {[%emt 0:00:21]} Qxh5 {[%emt 0:00:36]} 40. Qxh5+ {[%emt 0:00:00]} Rh6 {[%emt 0:00:00]} 41. Re8+ {[%emt 0:00:23]} Rxe8 {[%emt 0:02:36]} 42. Qxe8+ {[%emt 0:00:13]} Kh7 {[%emt 0:00:01]} 43. Kh2 {[%emt 0:00:17]} Ra6 {[%emt 0:02:31]} 44. a4 {[%emt 0:00:11]} g6 {[%emt 0:00:58]} 45. d6 {[%emt 0:00:10]} 1-0